fUST/lending_fUST_20241125
["ID","MTS","AMOUNT","RATE_DAILY","PERIOD"]
[343283671,1732541442948,-500.0,0.00024094,2]
[343283672,1732541442958,-500.0,0.00024094,2]
[343283673,1732541442968,-500.0,0.00024094,2]
[343283674,1732541442977,-500.0,0.00024094,2]
[343283675,1732541442986,-500.0,0.00024094,2]
[343283676,1732541442995,-500.0,0.00024094,2]
[343283677,1732541443005,-500.0,0.00024094,2]
[343283678,1732541443015,-500.0,0.00024094,2]
[343283679,1732541443025,-500.0,0.00024224,2]
[343283680,1732541443034,-500.0,0.00024248,2]
[343283681,1732541443044,-500.0,0.00024248,2]
[343283682,1732541443053,-671.63,0.00024248,2]
[343283683,1732541443062,-174.33,0.00024248,2]
[343283684,1732541443072,-500.0,0.00024248,2]
[343283685,1732541443081,-500.0,0.00024248,2]
[343283686,1732541443090,-500.0,0.00024267,2]
[343283687,1732541443100,-500.0,0.00024364,2]
[343283688,1732541443109,-500.0,0.00024364,2]
[343283689,1732541443118,-500.0,0.00024364,2]
[343283691,1732541443127,-500.0,0.00024364,2]
[343283693,1732541443137,-500.0,0.00024364,2]
[343283696,1732541443147,-500.0,0.00024364,2]
[343283698,1732541443158,-500.0,0.00024364,2]
[343283700,1732541443171,-500.0,0.00024364,2]
[343283702,1732541443180,-500.0,0.00024364,2]
[343283704,1732541443190,-500.0,0.00024364,2]
[343283706,1732541443200,-500.0,0.00024364,2]
[343283708,1732541443210,-204.4,0.00024364,2]
[343283710,1732541443220,-500.0,0.00024364,2]
[343283711,1732541443229,-500.0,0.00024364,2]
[343283713,1732541443239,-3987.93,0.00024364,2]
[343283715,1732541443249,-1080.41,0.00024364,2]
[343283717,1732541443259,-500.0,0.00024364,2]
[343283719,1732541443269,-500.0,0.00024364,2]
[343283722,1732541443279,-563.74,0.00024364,2]
[343283724,1732541443289,-1641.26,0.00024364,2]
[343283726,1732541443299,-500.0,0.00024364,2]
[343283727,1732541443308,-1170.12,0.00024364,2]
[343283729,1732541443318,-500.0,0.00024364,2]
[343283732,1732541443327,-500.0,0.00024364,2]
[343283733,1732541443338,-500.0,0.00024364,2]
[343283736,1732541443350,-500.0,0.00024364,2]
[343283737,1732541443360,-580.39,0.00024364,2]
[343283740,1732541443370,-500.0,0.00024364,2]
[343283741,1732541443379,-500.0,0.00024364,2]
[343283743,1732541443390,-6336.72,0.00024364,2]
[343283745,1732541443400,-620.04,0.00024364,2]
[343283747,1732541443409,-500.0,0.00024364,2]
[343283749,1732541443423,-500.0,0.00024367,2]
[343283751,1732541443433,-500.0,0.00024367,2]
[343283753,1732541443442,-500.0,0.00024367,2]
[343283755,1732541443452,-500.0,0.00024367,2]
[343283757,1732541443461,-500.0,0.00024367,2]
[343283759,1732541443471,-500.0,0.00024367,2]
[343283761,1732541443482,-500.0,0.00024367,2]
[343283763,1732541443491,-500.0,0.00024367,2]
[343283765,1732541443502,-500.0,0.00024367,2]
[343283767,1732541443511,-500.0,0.00024367,2]
[343283769,1732541443520,-500.0,0.00024367,2]
[343283771,1732541443529,-500.0,0.00024367,2]
[343283773,1732541443539,-500.0,0.00024367,2]
[343283775,1732541443547,-500.0,0.00024367,2]
[343283777,1732541443557,-500.0,0.00024367,2]
[343283779,1732541443567,-500.0,0.00024367,2]
[343283781,1732541443576,-500.0,0.00024367,2]
[343283783,1732541443586,-183.40323149,0.00024367,2]
[343283785,1732541443596,-500.0,0.00024367,2]
[343283787,1732541443605,-527.45027098,0.00024367,2]
[343283789,1732541443615,-500.0,0.00024367,2]
[343283791,1732541443626,-500.0,0.00024367,2]
[343283793,1732541443637,-500.0,0.00024367,2]
[343283796,1732541443647,-500.0,0.00024367,2]
[343283797,1732541443656,-500.0,0.00024367,2]
[343283799,1732541443670,-500.0,0.00024367,2]
[343283801,1732541443680,-500.0,0.00024367,2]
[343283803,1732541443689,-279.28365912,0.00024367,2]
[343283805,1732541443698,-500.0,0.00024367,2]
[343283808,1732541443709,-500.0,0.00024367,2]
[343283810,1732541443718,-500.0,0.00024367,2]
[343283812,1732541443727,-500.0,0.00024367,2]
[343283814,1732541443737,-506.28038012,0.00024368,2]
[343283816,1732541443746,-446.40880904,0.00024368,2]
[343283818,1732541443755,-530.77322033,0.00024368,2]
[343283820,1732541443765,-500.0,0.00024368,2]
[343283822,1732541443774,-500.0,0.00024368,2]
[343283824,1732541443784,-500.0,0.00024368,2]
[343283826,1732541443793,-585.06,0.00024368,2]
[343283828,1732541443802,-500.0,0.00024522,2]
[343283830,1732541443812,-500.0,0.00024522,2]
[343283832,1732541443822,-671.63,0.00024522,2]
[343283834,1732541443831,-500.0,0.00024522,2]
[343283836,1732541443840,-500.0,0.00024522,2]
[343283838,1732541443849,-500.0,0.00024638,2]
[343283839,1732541443858,-500.0,0.00024638,2]
[343283842,1732541443868,-500.0,0.00024638,2]
[343283844,1732541443878,-500.0,0.00024638,2]
[343283846,1732541443887,-500.0,0.00024638,2]
[343283848,1732541443899,-500.0,0.00024638,2]
[343283850,1732541443908,-500.0,0.00024638,2]
[343283852,1732541443920,-500.0,0.00024638,2]
[343283854,1732541443929,-535.34,0.00024638,2]
[343283856,1732541443939,-500.0,0.00024638,2]
[343283858,1732541443949,-500.0,0.00024638,2]
[343283860,1732541443958,-500.0,0.00024638,2]
[343283862,1732541443968,-500.0,0.00024638,2]
[343283864,1732541443978,-3987.93,0.00024638,2]
[343283866,1732541443987,-1080.41,0.00024638,2]
[343283868,1732541443997,-500.0,0.00024638,2]
[343283879,1732541444007,-626.37,0.00024638,2]
[343283881,1732541444104,-563.74,0.00024638,2]
[343283883,1732541444114,-1641.26,0.00024638,2]
[343283885,1732541444124,-500.0,0.00024638,2]
[343283888,1732541444135,-1170.12,0.00024638,2]
[343283890,1732541444145,-500.0,0.00024638,2]
[343283892,1732541444154,-500.0,0.00024638,2]
[343283894,1732541444167,-500.0,0.00024638,2]
[343283896,1732541444178,-500.0,0.00024638,2]
[343283898,1732541444188,-580.39,0.00024638,2]
[343283900,1732541444198,-500.0,0.00024638,2]
[343283902,1732541444208,-500.0,0.00024638,2]
[343283904,1732541444218,-6336.72,0.00024638,2]
[343283906,1732541444229,-620.04,0.00024638,2]
[343283908,1732541444239,-500.0,0.00024638,2]
[343283910,1732541444248,-500.0,0.00024641,2]
[343283912,1732541444258,-500.0,0.00024641,2]
[343283914,1732541444268,-500.0,0.00024641,2]
[343283916,1732541444278,-500.0,0.00024641,2]
[343283918,1732541444287,-500.0,0.00024641,2]
[343283919,1732541444297,-500.0,0.00024641,2]
[343283920,1732541444306,-500.0,0.00024641,2]
[343283921,1732541444316,-500.0,0.00024641,2]
[343283922,1732541444325,-649.18554166,0.00024641,2]
[343283923,1732541444335,-243.05764432,0.00024641,2]
[343283924,1732541444346,-500.0,0.00024641,2]
[343283925,1732541444356,-500.0,0.00024641,2]
[343283926,1732541444365,-500.0,0.00024641,2]
[343283927,1732541444374,-500.0,0.00024641,2]
[343283928,1732541444384,-500.0,0.00024641,2]
[343283929,1732541444394,-500.0,0.00024641,2]
[343283930,1732541444403,-500.0,0.00024642,2]
[343283931,1732541444415,-500.0,0.00024642,2]
[343283932,1732541444425,-500.0,0.00024642,2]
[343283933,1732541444435,-1000.0,0.00024772,2]
[343283934,1732541444443,-500.0,0.00024796,2]
[343283935,1732541444452,-500.0,0.00024796,2]
[343283936,1732541444461,-671.63,0.00024796,2]
[343283937,1732541444471,-500.0,0.00024796,2]
[343283938,1732541444480,-500.0,0.00024796,2]
[343283939,1732541444489,-565.69376315,0.00024815,2]
[343283941,1732541444499,-372.8,0.00024912,2]
[343283943,1732541444508,-570.88,0.00024912,2]
[343283945,1732541444517,-500.0,0.00024912,2]
[343283947,1732541444527,-500.0,0.00024912,2]
[343283949,1732541444537,-500.0,0.00024912,2]
[343283950,1732541444546,-500.0,0.00024912,2]
[343283952,1732541444556,-500.0,0.00024912,2]
[343283954,1732541444565,-500.0,0.00024912,2]
[343283956,1732541444575,-500.0,0.00024912,2]
[343283958,1732541444584,-217.66,0.00024912,2]
[343283960,1732541444593,-500.0,0.00024912,2]
[343283962,1732541444603,-529.61,0.00024912,2]
[343283964,1732541444613,-3987.93,0.00024912,2]
[343283966,1732541444623,-1080.41,0.00024912,2]
[343283968,1732541444633,-500.0,0.00024912,2]
[343283970,1732541444643,-563.74,0.00024912,2]
[343283972,1732541444653,-1641.26,0.00024912,2]
[343283974,1732541444664,-500.0,0.00024912,2]
[343283976,1732541444674,-1170.12,0.00024912,2]
[343283978,1732541444685,-500.0,0.00024912,2]
[343283980,1732541444694,-500.0,0.00024912,2]
[343283982,1732541444704,-500.0,0.00024912,2]
[343283984,1732541444713,-500.0,0.00024912,2]
[343283986,1732541444723,-580.39,0.00024912,2]
[343283988,1732541444732,-500.0,0.00024912,2]
[343283990,1732541444741,-601.0,0.00024912,2]
[343283992,1732541444751,-6336.72,0.00024912,2]
[343283994,1732541444760,-620.04,0.00024912,2]
[343283995,1732541444769,-500.0,0.00024912,2]
[343283997,1732541444779,-245.56,0.00024915,2]
[343284000,1732541444788,-500.0,0.00024915,2]
[343284001,1732541444798,-500.0,0.00024915,2]
[343284003,1732541444808,-500.0,0.00024915,2]
[343284005,1732541444817,-500.0,0.00024915,2]
[343284007,1732541444827,-500.0,0.00024916,2]
[343284008,1732541444836,-500.0,0.00024916,2]
[343284009,1732541444846,-500.0,0.0002507,2]
[343284010,1732541444856,-500.0,0.0002507,2]
[343284011,1732541444866,-671.63,0.0002507,2]
[343284012,1732541444875,-500.0,0.0002507,2]
[343284015,1732541444885,-500.0,0.0002507,2]
[343284016,1732541444895,-500.0,0.00025186,2]
[343284019,1732541444904,-500.0,0.00025186,2]
[343284020,1732541444916,-500.0,0.00025186,2]
[343284022,1732541444926,-500.0,0.00025186,2]
[343284024,1732541444935,-500.0,0.00025186,2]
[343284026,1732541444944,-639.4,0.00025186,2]
[343284028,1732541444954,-500.0,0.00025186,2]
[343284030,1732541444963,-500.0,0.00025186,2]
[343284033,1732541444973,-3987.93,0.00025186,2]
[343284035,1732541444982,-1080.41,0.00025186,2]
[343284036,1732541444991,-500.0,0.00025186,2]
[343284038,1732541445001,-563.74,0.00025186,2]
[343284041,1732541445011,-1641.26,0.00025186,2]
[343284043,1732541445021,-500.0,0.00025186,2]
[343284045,1732541445030,-1170.12,0.00025186,2]
[343284047,1732541445041,-500.0,0.00025186,2]
[343284049,1732541445050,-500.0,0.00025186,2]
[343284051,1732541445060,-500.0,0.00025186,2]
[343284053,1732541445070,-398.2,0.00025186,2]
[343284054,1732541445079,-580.39,0.00025186,2]
[343284056,1732541445089,-500.0,0.00025186,2]
[343284059,1732541445098,-6336.72,0.00025186,2]
[343284060,1732541445107,-620.04,0.00025186,2]
[343284063,1732541445117,-500.0,0.00025186,2]
[343284065,1732541445127,-500.0,0.00025189,2]
[343284067,1732541445136,-500.0,0.00025189,2]
[343284069,1732541445146,-623.06,0.00025189,2]
[343284071,1732541445157,-500.0,0.00025189,2]
[343284073,1732541445170,-541.12643118,0.0002519,2]
[343284074,1732541445179,-500.0,0.0002519,2]
[343284076,1732541445190,-500.0,0.00025344,2]
[343284078,1732541445199,-209.58,0.00025344,2]
[343284080,1732541445208,-671.63,0.00025344,2]
[343284082,1732541445217,-500.0,0.00025344,2]
[343284084,1732541445229,-500.0,0.00025344,2]
[343284087,1732541445241,-500.0,0.0002546,2]
[343284089,1732541445254,-500.0,0.0002546,2]
[343284091,1732541445266,-255.2882395,0.0002546,2]
[343284093,1732541445278,-500.0,0.0002546,2]
[343284096,1732541445292,-500.0,0.0002546,2]
[343284098,1732541445309,-500.0,0.0002546,2]
[343284100,1732541445329,-597.83036661,0.0002546,2]
[343284102,1732541445353,-3987.93,0.0002546,2]
[343284105,1732541445374,-1080.41,0.0002546,2]
[343284107,1732541445394,-500.0,0.0002546,2]
[343284109,1732541445416,-563.74,0.0002546,2]
[343284111,1732541445439,-1641.26,0.0002546,2]
[343284113,1732541445464,-500.0,0.0002546,2]
[343284115,1732541445490,-1170.12,0.0002546,2]
[343284118,1732541445517,-500.0,0.0002546,2]
[343284120,1732541445543,-369.04,0.0002546,2]
[343284122,1732541445569,-500.0,0.0002546,2]
[343284126,1732541445589,-580.39,0.0002546,2]
[343284128,1732541445601,-500.0,0.0002546,2]
[343284130,1732541445613,-6336.72,0.0002546,2]
[343284132,1732541445624,-620.04,0.0002546,2]
[343284135,1732541445635,-500.0,0.0002546,2]
[343284137,1732541445646,-500.0,0.00025463,2]
[343284139,1732541445656,-500.0,0.00025463,2]
[343284141,1732541445669,-500.0,0.00025463,2]
[343284143,1732541445680,-500.0,0.00025618,2]
[343284145,1732541445692,-671.63,0.00025618,2]
[343284148,1732541445705,-500.0,0.00025618,2]
[343284150,1732541445716,-204.97,0.00025618,2]
[343284152,1732541445727,-500.0,0.00025734,2]
[343284154,1732541445737,-500.0,0.00025734,2]
[343284156,1732541445747,-285.34,0.00025734,2]
[343284158,1732541445758,-500.0,0.00025734,2]
[343284161,1732541445769,-263.78,0.00025734,2]
[343284163,1732541445779,-3987.93,0.00025734,2]
[343284165,1732541445791,-1080.41,0.00025734,2]
[343284167,1732541445804,-500.0,0.00025734,2]
[343284170,1732541445815,-563.74,0.00025734,2]
[343284172,1732541445828,-1641.26,0.00025734,2]
[343284174,1732541445841,-500.0,0.00025734,2]
[343284176,1732541445853,-1170.12,0.00025734,2]
[343284179,1732541445866,-500.0,0.00025734,2]
[343284181,1732541445877,-500.0,0.00025734,2]
[343284182,1732541445888,-580.39,0.00025734,2]
[343284183,1732541445900,-500.0,0.00025734,2]
[343284184,1732541445912,-6336.72,0.00025734,2]
[343284185,1732541445924,-620.04,0.00025734,2]
[343284186,1732541445933,-500.0,0.00025734,2]
[343284187,1732541445943,-500.0,0.00025737,2]
[343284188,1732541445954,-500.0,0.00025737,2]
[343284189,1732541445965,-500.0,0.00025737,2]
[343284190,1732541445977,-500.0,0.00025774,2]
[343284191,1732541445989,-18845.29,0.000258,2]
[343284192,1732541446002,-500.0,0.00025892,2]
[343284193,1732541446014,-671.63,0.00025892,2]
[343284194,1732541446025,-500.0,0.00025892,2]
[343284195,1732541446035,-553.95,0.00026008,2]
[343284196,1732541446044,-500.0,0.00026008,2]
[343284197,1732541446055,-500.0,0.00026008,2]
[343284198,1732541446066,-3987.93,0.00026008,2]
[343284199,1732541446076,-1080.41,0.00026008,2]
[343284200,1732541446088,-500.0,0.00026008,2]
[343284202,1732541446099,-563.74,0.00026008,2]
[343284205,1732541446110,-1641.26,0.00026008,2]
[343284208,1732541446120,-500.0,0.00026008,2]
[343284211,1732541446131,-1170.12,0.00026008,2]
[343284214,1732541446142,-500.0,0.00026008,2]
[343284217,1732541446152,-500.0,0.00026008,2]
[343284220,1732541446164,-580.39,0.00026008,2]
[343284223,1732541446175,-500.0,0.00026008,2]
[343284226,1732541446186,-6336.72,0.00026008,2]
[343284229,1732541446197,-620.04,0.00026008,2]
[343284231,1732541446207,-500.0,0.00026008,2]
[343284233,1732541446218,-500.0,0.00026011,2]
[343284235,1732541446228,-500.0,0.00026011,2]
[343284237,1732541446241,-502.96,0.00026011,2]
[343284239,1732541446252,-500.0,0.00026166,2]
[343284241,1732541446262,-671.63,0.00026166,2]
[343284244,1732541446273,-500.0,0.00026166,2]
[343284246,1732541446284,-159.01,0.00026282,2]
[343284248,1732541446294,-500.0,0.00026282,2]
[343284250,1732541446305,-3987.93,0.00026282,2]
[343284252,1732541446315,-1080.41,0.00026282,2]
[343284254,1732541446326,-500.0,0.00026282,2]
[343284256,1732541446336,-563.74,0.00026282,2]
[343284259,1732541446350,-1641.26,0.00026282,2]
[343284261,1732541446360,-500.0,0.00026282,2]
[343284263,1732541446371,-1170.12,0.00026282,2]
[343284265,1732541446383,-500.0,0.00026282,2]
[343284267,1732541446395,-333.84,0.00026282,2]
[343284270,1732541446406,-580.39,0.00026282,2]
[343284272,1732541446419,-500.0,0.00026282,2]
[343284274,1732541446430,-6336.72,0.00026282,2]
[343284276,1732541446440,-620.04,0.00026282,2]
[343284278,1732541446451,-500.0,0.00026282,2]
[343284280,1732541446461,-500.0,0.00026285,2]
[343284282,1732541446472,-500.0,0.00026285,2]
[343284284,1732541446482,-500.0,0.0002644,2]
[343284286,1732541446492,-671.63,0.0002644,2]
[343284288,1732541446503,-500.0,0.0002644,2]
[343284290,1732541446513,-500.0,0.00026556,2]
[343284293,1732541446524,-3987.93,0.00026556,2]
[343284295,1732541446534,-1080.41,0.00026556,2]
[343284297,1732541446545,-563.74,0.00026556,2]
[343284299,1732541446555,-1641.26,0.00026556,2]
[343284301,1732541446566,-500.0,0.00026556,2]
[343284303,1732541446577,-1170.12,0.00026556,2]
[343284305,1732541446588,-500.0,0.00026556,2]
[343284307,1732541446598,-580.39,0.00026556,2]
[343284309,1732541446609,-500.0,0.00026556,2]
[343284311,1732541446620,-6336.72,0.00026556,2]
[343284313,1732541446630,-620.04,0.00026556,2]
[343284327,1732541446757,-500.0,0.00026556,2]
[343284330,1732541446770,-500.0,0.00026559,2]
[343284332,1732541446780,-500.0,0.00026559,2]
[343284334,1732541446789,-271.01,0.00026714,2]
[343284336,1732541446798,-671.63,0.00026714,2]
[343284338,1732541446807,-500.0,0.00026714,2]
[343284340,1732541446816,-500.0,0.0002683,2]
[343284342,1732541446826,-3987.93,0.0002683,2]
[343284344,1732541446834,-1080.41,0.0002683,2]
[343284346,1732541446843,-563.74,0.0002683,2]
[343284348,1732541446852,-1641.26,0.0002683,2]
[343284350,1732541446862,-500.0,0.0002683,2]
[343284352,1732541446871,-1170.12,0.0002683,2]
[343284354,1732541446881,-500.0,0.0002683,2]
[343284356,1732541446890,-580.39,0.0002683,2]
[343284358,1732541446900,-500.0,0.0002683,2]
[343284360,1732541446910,-6336.72,0.0002683,2]
[343284362,1732541446922,-620.04,0.0002683,2]
[343284364,1732541446931,-199.9,0.0002683,2]
[343284366,1732541446940,-500.0,0.00026833,2]
[343284368,1732541446949,-500.0,0.00026833,2]
[343284370,1732541446958,-671.63,0.00026988,2]
[343284372,1732541446967,-500.0,0.00026988,2]
[343284373,1732541446976,-437.32,0.00027104,2]
[343284375,1732541446986,-3987.93,0.00027104,2]
[343284378,1732541446995,-1080.41,0.00027104,2]
[343284380,1732541447005,-563.74,0.00027104,2]
[343284381,1732541447013,-1641.26,0.00027104,2]
[343284384,1732541447023,-372.11152112,0.00027104,2]
[343284386,1732541447032,-1170.12,0.00027104,2]
[343284387,1732541447041,-500.0,0.00027104,2]
[343284390,1732541447051,-580.39,0.00027104,2]
[343284392,1732541447061,-500.0,0.00027104,2]
[343284394,1732541447070,-6336.72,0.00027104,2]
[343284396,1732541447080,-620.04,0.00027104,2]
[343284398,1732541447090,-500.0,0.00027107,2]
[343284400,1732541447099,-500.0,0.00027107,2]
[343284402,1732541447109,-671.63,0.00027262,2]
[343284404,1732541447118,-500.0,0.00027262,2]
[343284406,1732541447128,-3987.93,0.00027378,2]
[343284408,1732541447137,-1080.41,0.00027378,2]
[343284410,1732541447147,-563.74,0.00027378,2]
[343284412,1732541447156,-1641.26,0.00027378,2]
[343284414,1732541447168,-1170.12,0.00027378,2]
[343284416,1732541447177,-500.0,0.00027378,2]
[343284418,1732541447186,-580.39,0.00027378,2]
[343284420,1732541447195,-500.0,0.00027378,2]
[343284422,1732541447205,-6336.72,0.00027378,2]
[343284424,1732541447216,-620.04,0.00027378,2]
[343284426,1732541447228,-500.0,0.00027381,2]
[343284428,1732541447237,-500.0,0.00027381,2]
[343284430,1732541447247,-500.0,0.00027397,2]
[343284432,1732541447256,-153.0,0.000274,30]
[343284434,1732541447265,-153.0,0.00027452,30]
[343284436,1732541447274,-153.0,0.00027452,30]
[343284438,1732541447285,-153.0,0.00027452,30]
[343284440,1732541447294,-153.0,0.00027452,30]
[343284442,1732541447304,-153.0,0.00027452,30]
[343284444,1732541447313,-153.0,0.00027452,30]
[343284446,1732541447322,-153.0,0.00027452,30]
[343284448,1732541447331,-671.63,0.00027536,2]
[343284450,1732541447340,-500.0,0.00027536,2]
[343284452,1732541447353,-3987.93,0.00027652,2]
[343284454,1732541447362,-1080.41,0.00027652,2]
[343284456,1732541447371,-563.74,0.00027652,2]
[343284458,1732541447381,-1641.26,0.00027652,2]
[343284460,1732541447390,-1170.12,0.00027652,2]
[343284462,1732541447400,-281.86,0.00027652,2]
[343284464,1732541447409,-580.39,0.00027652,2]
[343284466,1732541447422,-500.0,0.00027652,2]
[343284468,1732541447432,-6336.72,0.00027652,2]
[343284470,1732541447441,-620.04,0.00027652,2]
[343284472,1732541447451,-288.46,0.00027655,2]
[343284474,1732541447460,-500.0,0.00027655,2]
[343284476,1732541447469,-212.7413024,0.00027674,30]
[343284478,1732541447478,-212.7413024,0.00027674,30]
[343284480,1732541447488,-212.7413024,0.00027674,30]
[343284482,1732541447497,-212.7413024,0.00027674,30]
[343284484,1732541447507,-212.7413024,0.00027674,30]
[343284486,1732541447515,-212.7413024,0.00027674,30]
[343284488,1732541447525,-153.0,0.00027674,30]
[343284490,1732541447534,-212.7413024,0.00027674,30]
[343284492,1732541447543,-212.7413024,0.00027674,30]
[343284494,1732541447552,-153.0,0.00027674,30]
[343284496,1732541447561,-153.0,0.00027726,30]
[343284498,1732541447570,-153.0,0.00027726,30]
[343284500,1732541447580,-169.8330963,0.00027726,30]
[343284502,1732541447590,-671.63,0.0002781,2]
[343284504,1732541447599,-500.0,0.0002781,2]
[343284506,1732541447608,-8748.1038829,0.00027822,2]
[343284508,1732541447617,-3987.93,0.00027926,2]
[343284510,1732541447627,-1080.41,0.00027926,2]
[343284512,1732541447636,-563.74,0.00027926,2]
[343284514,1732541447645,-1641.26,0.00027926,2]
[343284516,1732541447655,-1170.12,0.00027926,2]
[343284518,1732541447665,-580.39,0.00027926,2]
[343284520,1732541447674,-500.0,0.00027926,2]
[343284522,1732541447684,-6336.72,0.00027926,2]
[343284524,1732541447693,-620.04,0.00027926,2]
[343284526,1732541447703,-500.0,0.00027929,2]
[343284528,1732541447712,-671.63,0.00028084,2]
[343284530,1732541447721,-500.0,0.00028084,2]
[343284532,1732541447734,-3987.93,0.000282,2]
[343284534,1732541447744,-1080.41,0.000282,2]
[343284536,1732541447754,-563.74,0.000282,2]
[343284538,1732541447763,-1641.26,0.000282,2]
[343284540,1732541447773,-1170.12,0.000282,2]
[343284542,1732541447782,-580.39,0.000282,2]
[343284544,1732541447792,-595.06,0.000282,2]
[343284546,1732541447801,-6336.72,0.000282,2]
[343284548,1732541447810,-620.04,0.000282,2]
[343284550,1732541447820,-500.0,0.00028203,2]
[343284552,1732541447829,-18845.29,0.000283,2]
[343284554,1732541447838,-671.63,0.00028358,2]
[343284556,1732541447847,-385.0,0.00028358,2]
[343284559,1732541447856,-153.0,0.00028359,30]
[343284561,1732541447866,-153.0,0.00028359,30]
[343284563,1732541447875,-153.0,0.00028359,30]
[343284565,1732541447884,-153.0,0.00028359,30]
[343284567,1732541447893,-336.4785496,0.00028359,30]
[343284569,1732541447902,-153.0,0.00028411,30]
[343284571,1732541447911,-153.0,0.00028411,30]
[343284573,1732541447922,-153.0,0.00028411,30]
[343284574,1732541447932,-153.0,0.00028411,30]
[343284576,1732541447941,-153.0,0.00028411,30]
[343284579,1732541447951,-153.0,0.00028411,30]
[343284580,1732541447960,-153.0,0.00028411,30]
[343284582,1732541447969,-153.0,0.00028411,30]
[343284584,1732541447978,-153.0,0.00028411,30]
[343284587,1732541447990,-153.0,0.00028411,30]
[343284588,1732541448000,-3987.93,0.00028474,2]
[343284591,1732541448010,-1080.41,0.00028474,2]
[343284593,1732541448020,-563.74,0.00028474,2]
[343284595,1732541448029,-1641.26,0.00028474,2]
[343284597,1732541448039,-1170.12,0.00028474,2]
[343284599,1732541448048,-580.39,0.00028474,2]
[343284601,1732541448057,-6336.72,0.00028474,2]
[343284603,1732541448066,-620.04,0.00028474,2]
[343284605,1732541448075,-500.0,0.00028477,2]
[343284606,1732541448084,-212.7413024,0.00028496,30]
[343284608,1732541448093,-212.7413024,0.00028496,30]
[343284610,1732541448102,-674.81,0.000285,2]
[343284612,1732541448112,-671.63,0.00028632,2]
[343284615,1732541448122,-3987.93,0.00028748,2]
[343284617,1732541448130,-1080.41,0.00028748,2]
[343284619,1732541448139,-563.74,0.00028748,2]
[343284621,1732541448148,-1641.26,0.00028748,2]
[343284623,1732541448158,-1170.12,0.00028748,2]
[343284625,1732541448169,-580.39,0.00028748,2]
[343284627,1732541448179,-6336.72,0.00028748,2]
[343284629,1732541448188,-620.04,0.00028748,2]
[343284631,1732541448197,-500.0,0.00028751,2]
[343284633,1732541448206,-162774.99509203,0.000289,5]
[343284635,1732541448216,-671.63,0.00028906,2]
[343284637,1732541448225,-3987.96,0.00029022,2]
[343284639,1732541448234,-1080.53,0.00029022,2]
[343284641,1732541448244,-563.87,0.00029022,2]
[343284643,1732541448253,-1641.42,0.00029022,2]
[343284645,1732541448262,-1170.26,0.00029022,2]
[343284647,1732541448271,-580.61,0.00029022,2]
[343284649,1732541448281,-6336.9182,0.00029022,2]
[343284651,1732541448290,-620.1,0.00029022,2]
[343284653,1732541448300,-500.0,0.00029025,2]